fUSD/lending_fUSD_20250904
["ID","MTS","AMOUNT","RATE_DAILY","PERIOD"]
[383574710,1757001059906,-338.28037765,0.00022801,2]
[383574711,1757001059916,-400.0,0.00022801,2]
[383574712,1757001059927,-400.0,0.00022801,2]
[383574713,1757001059936,-549.97,0.00022801,2]
[383574714,1757001059946,-400.0,0.00022801,2]
[383574715,1757001059956,-333.4088711,0.00022801,2]
[383574716,1757001059966,-400.0,0.00022801,2]
[383574717,1757001059976,-400.0,0.00022801,2]
[383574718,1757001059986,-400.0,0.00022801,2]
[383574719,1757001059995,-400.0,0.00022801,2]
[383574720,1757001060005,-400.0,0.00022801,2]
[383574721,1757001060015,-452.58,0.00022801,2]
[383574722,1757001060025,-439.41,0.00022801,2]
[383574723,1757001060035,-400.0,0.00022801,2]
[383574724,1757001060046,-400.0,0.00022801,2]
[383574725,1757001060057,-400.0,0.00022801,2]
[383574726,1757001060067,-784.71,0.00022801,2]
[383574727,1757001060078,-400.0,0.00022801,2]
[383574728,1757001060088,-400.0,0.00022801,2]
[383574729,1757001060098,-400.0,0.00022801,2]
[383574730,1757001060109,-400.0,0.00022801,2]
[383574731,1757001060119,-400.0,0.00022801,2]
[383574732,1757001060129,-400.0,0.00022801,2]
[383574733,1757001060139,-400.0,0.00022801,2]
[383574734,1757001060150,-2410.78,0.00022801,2]
[383574735,1757001060159,-277.4,0.00022801,2]
[383574736,1757001060169,-1000.0,0.00022801,2]
[383574737,1757001060180,-400.0,0.00022801,2]
[383574738,1757001060190,-400.0,0.00022801,2]
[383574739,1757001060200,-400.0,0.00022801,2]
[383574740,1757001060211,-1192.72,0.00022801,2]
[383574741,1757001060221,-400.0,0.00022801,2]
[383574742,1757001060232,-400.0,0.00022801,2]
[383574743,1757001060242,-1410.67,0.00022801,2]
[383574744,1757001060251,-400.0,0.00022801,2]
[383574745,1757001060261,-497.33,0.00022801,2]
[383574746,1757001060272,-400.0,0.00022801,2]
[383574747,1757001060282,-400.0,0.00022801,2]
[383574748,1757001060292,-400.0,0.00022801,2]
[383574749,1757001060302,-293.45,0.00022801,2]
[383574750,1757001060311,-1391.51,0.00022801,2]
[383574751,1757001060320,-173.01,0.00022801,2]
[383574752,1757001060330,-400.0,0.00022801,2]
[383574753,1757001060340,-459.65,0.00022801,2]
[383574754,1757001060349,-400.0,0.00022801,2]
[383574755,1757001060359,-400.0,0.00022801,2]
[383574756,1757001060370,-755.2,0.00022801,2]
[383574757,1757001060379,-400.0,0.00022801,2]
[383574758,1757001060389,-400.0,0.00022801,2]
[383574759,1757001060399,-400.0,0.00022801,2]
[383574760,1757001060409,-400.0,0.00022801,2]
[383574761,1757001060419,-272.04,0.00022801,2]
[383574762,1757001060430,-400.0,0.00022801,2]
[383574763,1757001060440,-289.82,0.00022801,2]
[383574764,1757001060450,-400.0,0.00022801,2]
[383574765,1757001060459,-400.0,0.00022801,2]
[383574766,1757001060469,-400.0,0.00022801,2]
[383574767,1757001060479,-400.0,0.00022801,2]
[383574768,1757001060489,-400.0,0.00022801,2]
[383574769,1757001060499,-181.14813004,0.00022801,2]
[383574770,1757001060509,-400.0,0.00022801,2]
[383574771,1757001060519,-403.55,0.00022801,2]
[383574772,1757001060529,-498.69,0.00022801,2]
[383574773,1757001060539,-471.24,0.00022802,2]
[383574774,1757001060548,-373.39538581,0.00022802,2]
[383574775,1757001060558,-182.88,0.00022802,2]
[383574776,1757001060567,-400.0,0.00022802,2]
[383574777,1757001060577,-400.0,0.00022802,2]
[383574778,1757001060589,-400.0,0.00022802,2]
[383574779,1757001060600,-400.0,0.00022802,2]
[383574780,1757001060611,-400.0,0.00022802,2]
[383574781,1757001060621,-400.0,0.00022802,2]
[383574782,1757001060630,-412.34092646,0.00022802,2]
[383574783,1757001060640,-400.0,0.00022802,2]
[383574784,1757001060650,-388.47,0.00022802,2]
[383574785,1757001060659,-491.98,0.00022802,2]
[383574786,1757001060670,-400.0,0.00022802,2]
[383574787,1757001060681,-409.63,0.00022802,2]
[383574788,1757001060692,-400.0,0.00022802,2]
[383574789,1757001060702,-400.0,0.00022802,2]
[383574790,1757001060713,-267.57,0.00022802,2]
[383574791,1757001060725,-319.80073253,0.00022803,2]
[383574792,1757001060737,-500.0,0.000229,2]
[383574793,1757001060748,-600.0,0.000229,8]
[383574794,1757001060759,-400.0,0.000229,8]
[383574795,1757001060769,-395.77080355,0.00022938,2]
[383574796,1757001060780,-500.0,0.00022938,2]
[383574797,1757001060791,-169.46,0.00022991,2]
[383574798,1757001060801,-5000.0,0.00023,2]
[383574799,1757001060811,-1000.0,0.00023,14]
[383574800,1757001060822,-3010.21128815,0.00023,2]
[383574801,1757001060832,-3010.21128815,0.00023,3]
[383574802,1757001060842,-300.0,0.00023039,2]
[383574803,1757001060852,-150.0,0.00023039,2]
[383574804,1757001060861,-1500.0,0.00023068,2]
[383574805,1757001060871,-1500.0,0.00023068,2]
[383574806,1757001060880,-500.0,0.00023075,2]
[383574807,1757001060891,-400.0,0.00023075,2]
[383574808,1757001060901,-400.0,0.00023075,2]
[383574809,1757001060911,-400.0,0.00023075,2]
[383574810,1757001060921,-400.0,0.00023075,2]
[383574811,1757001060931,-400.0,0.00023075,2]
[383574812,1757001060941,-400.0,0.00023075,2]
[383574813,1757001060951,-400.0,0.00023075,2]
[383574814,1757001060960,-400.0,0.00023075,2]
[383574815,1757001060970,-400.0,0.00023075,2]
[383574816,1757001060979,-439.41,0.00023075,2]
[383574817,1757001060989,-400.0,0.00023075,2]
[383574818,1757001060998,-400.0,0.00023075,2]
[383574819,1757001061008,-400.0,0.00023075,2]
[383574820,1757001061017,-784.71,0.00023075,2]
[383574821,1757001061027,-400.0,0.00023075,2]
[383574822,1757001061037,-400.0,0.00023075,2]
[383574823,1757001061048,-201.51281144,0.00023075,2]
[383574824,1757001061058,-400.0,0.00023075,2]
[383574825,1757001061067,-400.0,0.00023075,2]
[383574826,1757001061077,-400.0,0.00023075,2]
[383574827,1757001061087,-400.0,0.00023075,2]
[383574828,1757001061096,-2410.78,0.00023075,2]
[383574829,1757001061106,-1051.44933822,0.00023075,2]
[383574830,1757001061115,-400.0,0.00023075,2]
[383574831,1757001061125,-400.0,0.00023075,2]
[383574832,1757001061135,-1192.72,0.00023075,2]
[383574833,1757001061145,-400.0,0.00023075,2]
[383574834,1757001061154,-400.0,0.00023075,2]
[383574835,1757001061164,-1410.67,0.00023075,2]
[383574836,1757001061174,-400.0,0.00023075,2]
[383574837,1757001061184,-497.33,0.00023075,2]
[383574838,1757001061194,-400.0,0.00023075,2]
[383574839,1757001061205,-303.80625569,0.00023075,2]
[383574840,1757001061215,-1391.51,0.00023075,2]
[383574841,1757001061224,-400.0,0.00023075,2]
[383574842,1757001061234,-459.65,0.00023075,2]
[383574843,1757001061243,-400.0,0.00023075,2]
[383574844,1757001061253,-400.0,0.00023075,2]
[383574845,1757001061263,-755.2,0.00023075,2]
[383574846,1757001061272,-400.0,0.00023075,2]
[383574847,1757001061282,-400.0,0.00023075,2]
[383574848,1757001061292,-400.0,0.00023075,2]
[383574849,1757001061302,-400.0,0.00023075,2]
[383574850,1757001061312,-400.0,0.00023075,2]
[383574851,1757001061321,-400.0,0.00023075,2]
[383574852,1757001061331,-400.0,0.00023075,2]
[383574853,1757001061340,-400.0,0.00023075,2]
[383574854,1757001061350,-400.0,0.00023075,2]
[383574855,1757001061359,-193.42,0.00023075,2]
[383574856,1757001061369,-400.0,0.00023075,2]
[383574857,1757001061378,-498.69,0.00023075,2]
[383574858,1757001061388,-400.0,0.00023076,2]
[383574859,1757001061397,-400.0,0.00023076,2]
[383574860,1757001061407,-410.05444633,0.00023076,2]
[383574861,1757001061416,-400.0,0.00023076,2]
[383574862,1757001061426,-400.0,0.00023076,2]
[383574863,1757001061436,-400.0,0.00023076,2]
[383574864,1757001061445,-400.0,0.00023076,2]
[383574865,1757001061455,-400.0,0.00023076,2]
[383574866,1757001061464,-400.0,0.00023076,2]
[383574867,1757001061474,-166.9,0.00023079,2]
[383574868,1757001061483,-300.0,0.00023085,2]
[383574869,1757001061492,-250.0,0.00023085,2]
[383574870,1757001061502,-2500.0,0.00023085,2]
[383574871,1757001061511,-300.0,0.00023085,2]
[383574872,1757001061520,-195.0,0.00023085,2]
[383574873,1757001061529,-300.0,0.00023085,2]
[383574874,1757001061539,-250.0,0.00023085,2]
[383574875,1757001061548,-500.0,0.00023085,2]
[383574876,1757001061559,-353.04771128,0.00023205,2]
[383574877,1757001061569,-600.0,0.00023206,2]
[383574878,1757001061580,-500.0,0.00023212,2]
[383574879,1757001061591,-191.0,0.00023276,2]
[383574880,1757001061600,-160.21715652,0.00023305,2]
[383574881,1757001061610,-248.71531821,0.00023328,2]
[383574882,1757001061619,-468.35703647,0.00023336,2]
[383574883,1757001061630,-500.0,0.00023349,2]
[383574884,1757001061639,-217.21002465,0.00023349,2]
[383574885,1757001061649,-400.0,0.00023349,2]
[383574886,1757001061658,-400.0,0.00023349,2]
[383574887,1757001061668,-400.0,0.00023349,2]
[383574888,1757001061678,-328.37452203,0.00023349,2]
[383574889,1757001061688,-400.0,0.00023349,2]
[383574890,1757001061698,-400.0,0.00023349,2]
[383574891,1757001061709,-400.0,0.00023349,2]
[383574892,1757001061719,-400.0,0.00023349,2]
[383574893,1757001061732,-439.41,0.00023349,2]
[383574894,1757001061742,-400.0,0.00023349,2]
[383574895,1757001061751,-342.48676146,0.00023349,2]
[383574896,1757001061762,-400.0,0.00023349,2]
[383574897,1757001061771,-784.71,0.00023349,2]
[383574898,1757001061781,-400.0,0.00023349,2]
[383574899,1757001061790,-400.0,0.00023349,2]
[383574900,1757001061800,-272.07938903,0.00023349,2]
[383574901,1757001061812,-400.0,0.00023349,2]
[383574902,1757001061822,-400.0,0.00023349,2]
[383574903,1757001061831,-2410.78,0.00023349,2]
[383574904,1757001061840,-400.0,0.00023349,2]
[383574905,1757001061850,-400.0,0.00023349,2]
[383574906,1757001061859,-1192.72,0.00023349,2]
[383574907,1757001061868,-400.0,0.00023349,2]
[383574908,1757001061878,-400.0,0.00023349,2]
[383574909,1757001061888,-1410.67,0.00023349,2]
[383574910,1757001061900,-400.0,0.00023349,2]
[383574911,1757001061910,-497.33,0.00023349,2]
[383574912,1757001061919,-400.0,0.00023349,2]
[383574913,1757001061930,-1391.51,0.00023349,2]
[383574914,1757001061939,-183.61,0.00023349,2]
[383574915,1757001061950,-459.65,0.00023349,2]
[383574916,1757001061959,-400.0,0.00023349,2]
[383574917,1757001061970,-400.0,0.00023349,2]
[383574918,1757001061980,-755.2,0.00023349,2]
[383574919,1757001061990,-371.91,0.00023349,2]
[383574920,1757001062000,-399.71,0.00023349,2]
[383574921,1757001062011,-400.0,0.00023349,2]
[383574922,1757001062020,-400.0,0.00023349,2]
[383574923,1757001062030,-400.0,0.00023349,2]
[383574924,1757001062040,-400.0,0.00023349,2]
[383574925,1757001062049,-400.0,0.00023349,2]
[383574926,1757001062059,-400.0,0.00023349,2]
[383574927,1757001062069,-400.95065098,0.00023349,2]
[383574928,1757001062079,-242.56,0.00023349,2]
[383574929,1757001062088,-498.69,0.00023349,2]
[383574930,1757001062098,-400.0,0.0002335,2]
[383574931,1757001062107,-400.0,0.0002335,2]
[383574932,1757001062166,-400.0,0.0002335,2]
[383574933,1757001062178,-400.0,0.0002335,2]
[383574934,1757001062188,-500.0,0.0002335,2]
[383574935,1757001062197,-400.0,0.0002335,2]
[383574936,1757001062207,-178.37,0.0002335,2]
[383574937,1757001062216,-400.0,0.0002335,2]
[383574938,1757001062226,-410.68683517,0.0002335,2]
[383574939,1757001062235,-5839.90717645,0.00023417,2]
[383574940,1757001062245,-8238.01105215,0.00023418,2]
[383574941,1757001062254,-500.0,0.00023486,2]
[383574942,1757001062263,-306.66490922,0.00023493,2]
[383574943,1757001062273,-2600.0,0.00023508,2]
[383574944,1757001062282,-191.0,0.00023508,2]
[383574945,1757001062293,-191.0,0.00023548,2]
[383574946,1757001062302,-699.0,0.0002355,2]
[383574947,1757001062312,-227.78,0.00023559,2]
[383574948,1757001062322,-191.0,0.00023574,2]
[383574949,1757001062331,-154.90012182,0.00023601,2]
[383574950,1757001062340,-902.33906975,0.00023616,2]
[383574951,1757001062350,-500.0,0.00023623,2]
[383574952,1757001062360,-158.77817492,0.00023623,2]
[383574953,1757001062370,-400.0,0.00023623,2]
[383574954,1757001062379,-523.53659381,0.00023623,2]
[383574955,1757001062389,-400.0,0.00023623,2]
[383574956,1757001062398,-400.0,0.00023623,2]
[383574957,1757001062408,-400.0,0.00023623,2]
[383574958,1757001062417,-439.41,0.00023623,2]
[383574959,1757001062427,-400.0,0.00023623,2]
[383574960,1757001062436,-400.0,0.00023623,2]
[383574961,1757001062446,-784.71,0.00023623,2]
[383574962,1757001062455,-400.0,0.00023623,2]
[383574963,1757001062465,-400.0,0.00023623,2]
[383574964,1757001062474,-400.0,0.00023623,2]
[383574965,1757001062483,-2410.78,0.00023623,2]
[383574966,1757001062493,-263.34795876,0.00023623,2]
[383574967,1757001062503,-400.0,0.00023623,2]
[383574968,1757001062512,-400.0,0.00023623,2]
[383574969,1757001062522,-1192.72,0.00023623,2]
[383574970,1757001062531,-400.0,0.00023623,2]
[383574971,1757001062541,-1410.67,0.00023623,2]
[383574972,1757001062551,-400.0,0.00023623,2]
[383574973,1757001062561,-497.33,0.00023623,2]
[383574974,1757001062570,-400.0,0.00023623,2]
[383574975,1757001062580,-1391.51,0.00023623,2]
[383574976,1757001062590,-459.65,0.00023623,2]
[383574977,1757001062599,-400.0,0.00023623,2]
[383574978,1757001062609,-223.13,0.00023623,2]
[383574979,1757001062618,-755.2,0.00023623,2]
[383574980,1757001062628,-400.0,0.00023623,2]
[383574981,1757001062637,-400.0,0.00023623,2]
[383574982,1757001062647,-400.0,0.00023623,2]
[383574983,1757001062658,-502.31,0.00023623,2]
[383574984,1757001062668,-400.0,0.00023623,2]
[383574985,1757001062677,-400.0,0.00023623,2]
[383574986,1757001062686,-400.0,0.00023623,2]
[383574987,1757001062695,-498.69,0.00023623,2]
[383574988,1757001062704,-514.64478986,0.00023624,2]
[383574989,1757001062714,-160.0,0.00023624,2]
[383574990,1757001062726,-212.59699798,0.00023624,2]
[383574991,1757001062737,-160.0,0.00023624,2]
[383574992,1757001062747,-160.0,0.00023624,2]
[383574993,1757001062756,-400.0,0.00023624,2]
[383574994,1757001062766,-400.0,0.00023624,2]
[383574995,1757001062776,-400.0,0.00023624,2]
[383574996,1757001062785,-400.0,0.00023624,2]
[383574997,1757001062795,-400.0,0.00023624,2]
[383574998,1757001062805,-489.77192854,0.00023624,2]
[383574999,1757001062815,-150.0,0.00023633,4]
[383575000,1757001062824,-150.0,0.00023633,4]
[383575001,1757001062834,-191.0,0.00023655,2]
[383575002,1757001062843,-191.0,0.0002366,2]
[383575003,1757001062853,-1000.0,0.00023726,2]
[383575004,1757001062863,-191.0,0.00023734,2]
[383575005,1757001062872,-600.0,0.00023754,2]
[383575006,1757001062881,-500.0,0.0002376,2]
[383575007,1757001062892,-1680.0,0.0002389,2]
[383575008,1757001062901,-500.0,0.00023897,2]
[383575009,1757001062910,-400.0,0.00023897,2]
[383575010,1757001062919,-214.93102987,0.00023897,2]
[383575011,1757001062929,-400.0,0.00023897,2]
[383575012,1757001062938,-400.0,0.00023897,2]
[383575013,1757001062947,-439.41,0.00023897,2]
[383575014,1757001062956,-400.0,0.00023897,2]
[383575015,1757001062965,-400.0,0.00023897,2]
[383575016,1757001062975,-784.71,0.00023897,2]
[383575017,1757001062985,-400.0,0.00023897,2]
[383575018,1757001062995,-400.0,0.00023897,2]
[383575019,1757001063004,-400.0,0.00023897,2]
[383575020,1757001063013,-2410.78,0.00023897,2]
[383575021,1757001063023,-400.0,0.00023897,2]
[383575022,1757001063033,-400.0,0.00023897,2]
[383575023,1757001063043,-1192.72,0.00023897,2]
[383575024,1757001063053,-400.0,0.00023897,2]
[383575025,1757001063064,-1410.67,0.00023897,2]
[383575026,1757001063074,-400.0,0.00023897,2]
[383575027,1757001063083,-497.33,0.00023897,2]
[383575028,1757001063092,-400.0,0.00023897,2]
[383575029,1757001063102,-1391.51,0.00023897,2]
[383575030,1757001063111,-459.65,0.00023897,2]
[383575031,1757001063121,-400.0,0.00023897,2]
[383575032,1757001063130,-755.2,0.00023897,2]
[383575033,1757001063140,-400.0,0.00023897,2]
[383575034,1757001063149,-400.0,0.00023897,2]
[383575035,1757001063159,-348.13924671,0.00023897,2]
[383575036,1757001063169,-400.0,0.00023897,2]
[383575037,1757001063180,-400.0,0.00023897,2]
[383575038,1757001063190,-400.0,0.00023897,2]
[383575039,1757001063199,-498.69,0.00023897,2]
[383575040,1757001063210,-4930.0,0.00023898,2]
[383575041,1757001063219,-400.0,0.00023898,2]
[383575042,1757001063228,-400.0,0.00023898,2]
[383575043,1757001063238,-375.95964141,0.00023898,2]
[383575044,1757001063247,-400.0,0.00023898,2]
[383575045,1757001063257,-388.9789371,0.00023898,2]
[383575046,1757001063266,-633.47650203,0.0002391,2]
[383575047,1757001063276,-191.0,0.00023969,2]
[383575048,1757001063285,-5000.0,0.00024,2]
[383575049,1757001063295,-3010.21128815,0.00024,7]
[383575050,1757001063304,-160.0,0.00024,7]
[383575051,1757001063314,-160.0,0.00024,7]
[383575052,1757001063324,-1488.53,0.00024,2]
[383575053,1757001063333,-605.25,0.00024,2]
[383575054,1757001063343,-163.77488832,0.0002401,2]
[383575055,1757001063352,-448.70258057,0.00024026,2]
[383575056,1757001063362,-500.0,0.00024034,2]
[383575057,1757001063372,-4930.0,0.00024097,2]
[383575058,1757001063381,-151.05,0.00024144,2]
[383575059,1757001063391,-500.0,0.00024171,2]
[383575060,1757001063401,-400.0,0.00024171,2]
[383575061,1757001063411,-400.0,0.00024171,2]
[383575062,1757001063420,-400.0,0.00024171,2]
[383575063,1757001063430,-439.41,0.00024171,2]
[383575064,1757001063440,-200.25129753,0.00024171,2]
[383575065,1757001063448,-400.0,0.00024171,2]
[383575066,1757001063459,-784.71,0.00024171,2]
[383575067,1757001063469,-400.0,0.00024171,2]
[383575068,1757001063478,-400.0,0.00024171,2]
[383575069,1757001063488,-400.0,0.00024171,2]
[383575070,1757001063497,-2410.78,0.00024171,2]
[383575071,1757001063507,-158.52,0.00024171,2]
[383575072,1757001063517,-400.0,0.00024171,2]
[383575073,1757001063527,-1192.72,0.00024171,2]
[383575074,1757001063536,-400.0,0.00024171,2]
[383575075,1757001063546,-1410.67,0.00024171,2]
[383575076,1757001063556,-400.0,0.00024171,2]
[383575077,1757001063565,-497.33,0.00024171,2]
[383575078,1757001063575,-400.0,0.00024171,2]
[383575079,1757001063584,-1391.51,0.00024171,2]
[383575080,1757001063593,-459.65,0.00024171,2]
[383575081,1757001063603,-400.0,0.00024171,2]
[383575082,1757001063613,-755.2,0.00024171,2]
[383575083,1757001063624,-400.0,0.00024171,2]
[383575084,1757001063634,-400.0,0.00024171,2]
[383575085,1757001063644,-400.0,0.00024171,2]
[383575086,1757001063654,-400.0,0.00024171,2]
[383575087,1757001063664,-400.0,0.00024171,2]
[383575088,1757001063674,-498.69,0.00024171,2]
[383575089,1757001063684,-400.0,0.00024172,2]
[383575090,1757001063695,-400.0,0.00024172,2]
[383575091,1757001063705,-500.0,0.00024172,2]
[383575092,1757001063715,-400.0,0.00024172,2]
[383575093,1757001063724,-5839.90717645,0.00024186,2]
[383575094,1757001063739,-8238.01105215,0.00024187,2]
[383575095,1757001063748,-600.0,0.00024302,2]
[383575096,1757001063758,-500.0,0.00024308,2]
[383575097,1757001063768,-170.0,0.00024445,2]
[383575098,1757001063778,-400.0,0.00024445,2]
[383575099,1757001063789,-400.0,0.00024445,2]
[383575100,1757001063798,-400.0,0.00024445,2]
[383575101,1757001063809,-439.41,0.00024445,2]
[383575102,1757001063818,-400.0,0.00024445,2]
[383575103,1757001063828,-784.71,0.00024445,2]
[383575104,1757001063837,-400.0,0.00024445,2]
[383575105,1757001063847,-400.0,0.00024445,2]
[383575106,1757001063856,-400.0,0.00024445,2]
[383575107,1757001063865,-2410.78,0.00024445,2]
[383575108,1757001063875,-400.0,0.00024445,2]
[383575109,1757001063885,-1192.72,0.00024445,2]
[383575110,1757001063895,-527.31108414,0.00024445,2]
[383575111,1757001063905,-1410.67,0.00024445,2]
[383575112,1757001063916,-400.0,0.00024445,2]
[383575113,1757001063926,-497.33,0.00024445,2]
[383575114,1757001063936,-400.0,0.00024445,2]
[383575115,1757001063946,-1391.51,0.00024445,2]
[383575116,1757001063956,-459.65,0.00024445,2]
[383575117,1757001063966,-400.0,0.00024445,2]
[383575118,1757001063976,-755.2,0.00024445,2]
[383575119,1757001063987,-400.0,0.00024445,2]
[383575120,1757001063996,-400.0,0.00024445,2]
[383575121,1757001064006,-449.4808825,0.00024445,2]
[383575122,1757001064015,-400.0,0.00024445,2]
[383575123,1757001064025,-498.69,0.00024445,2]
[383575124,1757001064034,-400.0,0.00024446,2]
[383575125,1757001064044,-400.0,0.00024446,2]
[383575126,1757001064055,-400.0,0.00024446,2]
[383575127,1757001064064,-191.0,0.00024459,2]
[383575128,1757001064074,-191.0,0.00024462,2]
[383575129,1757001064084,-191.0,0.00024481,2]
[383575130,1757001064094,-2619.65,0.000245,2]
[383575131,1757001064104,-191.0,0.00024538,2]
[383575132,1757001064114,-306.66490922,0.00024558,2]
[383575133,1757001064124,-191.0,0.00024596,2]
[383575134,1757001064134,-2619.65,0.000246,2]
[383575135,1757001064144,-1000.0,0.00024616,2]
[383575136,1757001064154,-191.0,0.00024617,2]
[383575137,1757001064164,-717.60093178,0.00024648,2]
[383575138,1757001064174,-500.0,0.00024656,2]
[383575139,1757001064184,-500.0,0.00024656,2]
[383575140,1757001064194,-500.0,0.00024656,2]
[383575141,1757001064204,-500.0,0.00024656,2]
[383575142,1757001064213,-500.0,0.00024656,2]
[383575143,1757001064223,-500.0,0.00024656,2]
[383575144,1757001064233,-500.0,0.00024656,2]
[383575145,1757001064242,-500.0,0.00024656,2]
[383575146,1757001064252,-500.0,0.00024656,2]
[383575147,1757001064262,-500.0,0.00024656,2]
[383575148,1757001064271,-500.0,0.00024656,2]
[383575149,1757001064280,-500.0,0.00024656,2]
[383575150,1757001064289,-500.0,0.00024656,2]
[383575151,1757001064298,-500.0,0.00024656,2]
[383575152,1757001064307,-500.0,0.00024656,2]
[383575153,1757001064317,-500.0,0.00024656,2]
[383575154,1757001064326,-500.0,0.00024656,2]
[383575155,1757001064335,-500.0,0.00024656,2]
[383575156,1757001064344,-500.0,0.00024656,2]
[383575157,1757001064354,-500.0,0.00024656,2]
[383575158,1757001064363,-500.0,0.00024656,2]
[383575159,1757001064374,-500.0,0.00024656,2]
[383575160,1757001064383,-500.0,0.00024656,2]
[383575161,1757001064393,-500.0,0.00024656,2]
[383575162,1757001064402,-500.0,0.00024656,2]
[383575163,1757001064411,-500.0,0.00024656,2]
[383575164,1757001064421,-500.0,0.00024656,2]
[383575165,1757001064432,-500.0,0.00024656,2]
[383575166,1757001064441,-500.0,0.00024656,2]
[383575167,1757001064451,-500.0,0.00024656,2]
[383575168,1757001064460,-500.0,0.00024656,2]
[383575169,1757001064470,-500.0,0.00024656,2]
[383575170,1757001064479,-500.0,0.00024656,2]
[383575171,1757001064488,-500.0,0.00024656,2]
[383575172,1757001064499,-500.0,0.00024656,2]
[383575173,1757001064509,-500.0,0.00024656,2]
[383575174,1757001064519,-500.0,0.00024656,2]
[383575175,1757001064529,-500.0,0.00024656,2]
[383575176,1757001064539,-500.0,0.00024656,2]
[383575177,1757001064548,-500.0,0.00024656,2]
[383575178,1757001064559,-666.0,0.00024657,2]
[383575179,1757001064568,-300.0,0.00024657,2]
[383575180,1757001064579,-300.0,0.00024657,2]
[383575181,1757001064590,-505.86347906,0.00024657,2]
[383575182,1757001064599,-300.0,0.00024657,2]
[383575183,1757001064610,-300.0,0.00024657,2]
[383575184,1757001064620,-418.33906871,0.00024657,2]
[383575185,1757001064630,-502.31,0.00024657,2]
[383575186,1757001064640,-153.0,0.00024658,2]
[383575187,1757001064652,-153.0,0.00024658,2]
[383575188,1757001064662,-153.0,0.00024658,2]
[383575189,1757001064672,-153.0,0.00024658,2]
[383575190,1757001064683,-153.0,0.00024658,2]
[383575191,1757001064692,-153.0,0.00024658,2]
[383575192,1757001064702,-153.0,0.00024658,2]
[383575193,1757001064714,-153.0,0.00024658,2]
[383575194,1757001064725,-153.0,0.00024658,2]
[383575195,1757001064737,-153.0,0.00024658,2]
[383575196,1757001064747,-153.0,0.00024658,2]
[383575197,1757001064757,-153.0,0.00024658,2]
[383575198,1757001064767,-153.0,0.00024658,2]
[383575199,1757001064778,-153.0,0.00024658,2]
[383575200,1757001064788,-153.0,0.00024658,2]
[383575201,1757001064798,-153.0,0.00024658,2]
[383575202,1757001064809,-153.0,0.00024658,2]
[383575203,1757001064819,-153.0,0.00024658,2]
[383575204,1757001064829,-153.0,0.00024658,2]
[383575205,1757001064840,-153.0,0.00024658,2]
[383575206,1757001064850,-153.0,0.00024658,2]
[383575207,1757001064861,-153.0,0.00024658,2]
[383575208,1757001064871,-153.0,0.00024658,2]
[383575209,1757001064880,-153.0,0.00024658,2]